Cogmind - Beta 15 @@@ ROGUE MODE // 2025.08.30 @ 14:08:05 Player: Singularius Result: Destroyed by S-27 Virus with Autogun Performance ------------- Evolutions (4) 2000 Regions Visited (15) 3000 Robots Destroyed (132) 660 Value Destroyed (4439) 4439 Prototype IDs (49) 980 Alien Tech Used (0) 0 Bonus (1682) 1682 TOTAL SCORE: 12761 Bonus ------- High Alert Combat Kills 13 Follower Combat Kills 1272 Aligned with FarCom 300 Met Data Miner 300 Friendly Fire -203 Cogmind --------- Core Integrity 0/850 Matter 261/300 Energy 99/100 System Corruption 4% Temperature Cool (0) Movement Core (50) Location -6/Lower Caves Parts ------- > --- POWER (2) -------- (None) > --- PROPULSION (4) --- (None) > --- UTILITY (5) ------ (None) > --- WEAPON (4) ------- (None) > --- INVENTORY (5) ---- Improved Deuterium Engine Advanced Heat Sink Advanced Heat Sink Large Storage Unit Heavy Beamcaster Peak State ------------ > --- POWER ------------ Heavy Deuterium Engine Neutrino Core > --- PROPULSION ------- Light Treads Improved Medium Treads Heavy Treads > --- UTILITY ---------- Large Storage Unit IFF Parser Improved Terrain Scanner Armor Integrity Analyzer Layered Light Armor Plating > --- WEAPON ----------- Heavy Tesla Rifle Compact Ion Cannon Nova Cannon Bore Cannon > --- INVENTORY -------- Improved Deuterium Engine Light Treads Cryofiber Web Advanced Heat Sink Advanced Heat Sink Matter Compressor Transmission Jammer Light Regenerative Plating Heavy Beamcaster Heavy Beamcaster Heavy Beamcaster Heavy Beamcaster Precision Assault Rifle Magnetic Acceleration Cannon Bore Cannon [Rating: 80] Favorites ----------- Power Heavy Deuterium Engine Engine Heavy Deuterium Engine Power Core Light Nuclear Core Reactor Cold Fusion Reactor Propulsion Medium Treads Treads Medium Treads Leg Carbon-fiber Leg Hover Unit Backup Propulsion III Utility Large Storage Unit Device Improved Terrain Scanner Storage Large Storage Unit Processor Advanced Targeting Computer Protection Layered Light Armor Plating Weapon EM Shotgun Energy Gun EM Shotgun Energy Cannon Nova Cannon Ballistic Gun Flak Gun Ballistic Cannon Bore Cannon Launcher Heavy Rocket Launcher Special Weapon Field Lobotomy Kit Build | -11 -10 -10 -10 -9 -8 -7 -7 -7 -7 -6 -6 -6 -6 -6 -6 ------- Run | Yrd Mat Min Exi Min Mat Fac Low Low Dat Pro Fac Was Fac Low Low Slots Evolved 8 | . . . . . 4 2 . . . . 2 . . . . Power 1 | . . . . . . . . . . . 1 . . . . Propulsion 2 | . . . . . 2 . . . . . . . . . . Utility 3 | . . . . . 1 1 . . . . 1 . . . . Weapon 2 | . . . . . 1 1 . . . . . . . . . Parts Attached 121 | 7 8 1 . 2 16 36 2 3 . 6 14 17 3 3 3 Power 17 | 1 3 . . . 2 3 . . . 1 3 2 1 . 1 Engine 10 | 1 2 . . . . 3 . . . . 2 1 . . 1 Core 6 | . 1 . . . 2 . . . . 1 . 1 1 . . Reactor 1 | . . . . . . . . . . . 1 . . . . Propulsion 28 | 2 . . . . 5 13 . . . 2 2 4 . . . Treads 18 | 2 . . . . 1 7 . . . 2 2 4 . . . Leg 10 | . . . . . 4 6 . . . . . . . . . Wheel . | . . . . . . . . . . . . . . . . Hover . | . . . . . . . . . . . . . . . . Flight . | . . . . . . . . . . . . . . . . Utility 25 | 2 3 . . 1 4 4 . . . 1 4 3 1 1 1 Device 12 | 1 1 . . . 1 1 . . . . 4 2 1 1 . Storage 2 | 1 1 . . . . . . . . . . . . . . Processor 4 | . . . . . 1 2 . . . . . 1 . . . Hackware . | . . . . . . . . . . . . . . . . Protection 7 | . 1 . . 1 2 1 . . . 1 . . . . 1 Artifact . | . . . . . . . . . . . . . . . . Weapon 51 | 2 2 1 . 1 5 16 2 3 . 2 5 8 1 2 1 Energy Gun 21 | 1 2 1 . 1 2 5 1 1 . 1 1 4 . . 1 Energy Cannon 8 | . . . . . . 4 . . . . 1 2 1 . . Ballistic Gun 13 | 1 . . . . 2 5 1 . . 1 2 . . 1 . Ballistic Cannon 6 | . . . . . 1 1 . . . . 1 2 . 1 . Launcher 2 | . . . . . . 1 . 1 . . . . . . . Special Weapon 1 | . . . . . . . . 1 . . . . . . . Impact Weapon . | . . . . . . . . . . . . . . . . Slashing Weapon . | . . . . . . . . . . . . . . . . Piercing Weapon . | . . . . . . . . . . . . . . . . Special Melee Weapon . | . . . . . . . . . . . . . . . . Unidentified Prototypes 7 | . . . . . . 4 . . . . 1 1 1 . . Parts Lost 40 | . 1 1 . 1 2 8 . 2 . 3 2 7 . 2 11 Power 4 | . . . . . . 1 . . . . . . . . 3 Propulsion 14 | . . . . . 1 3 . . . 1 2 3 . . 4 Utility 6 | . 1 . . . . . . . . 1 . 2 . . 2 Weapon 16 | . . 1 . 1 1 4 . 2 . 1 . 2 . 2 2 Highest Loss Streak 11 | . 1 1 . 1 1 6 . 1 . 2 1 6 . 2 11 To Critical Strikes . | . . . . . . . . . . . . . . . . Average Backups 13 | 2 8 13 14 14 14 14 15 14 14 14 14 8 14 14 11 Power 1 | . 1 2 3 2 2 1 2 2 2 2 2 1 1 1 . Propulsion 1 | 1 2 3 3 3 . 1 3 3 3 2 1 . 1 1 . Utility 4 | . 1 2 3 3 5 5 6 6 6 5 6 3 5 5 5 Weapon 4 | . 2 5 5 4 4 4 3 2 2 2 3 3 7 6 3 Tool/Special . | . . . . . . . . . . . . . . . . Unused Backups 31 | . 2 . . . 10 5 . . . . 1 3 5 . 5 Power 6 | . . . . . 1 2 . . . . . 1 1 . 1 Propulsion 3 | . 1 . . . 1 . . . . . . 1 . . . Utility 12 | . . . . . 5 1 . . . . . . 2 . 4 Weapon 10 | . 1 . . . 3 2 . . . . 1 1 2 . . Tool/Special . | . . . . . . . . . . . . . . . . Average Slot Usage (%) 96 | . 98 99 100 99 98 98 100 99 100 99 99 79 93 93 70 Engine 4 | . 8 . . . . 3 7 7 7 2 7 6 6 6 4 Core 5 | . 5 14 14 14 9 3 . . . 4 1 3 6 6 4 Treads 21 | . 27 28 28 28 15 9 30 30 30 29 25 12 20 20 13 Leg 4 | . . . . . 20 19 . . . . . . . . . Device 10 | . 12 14 14 10 12 5 7 7 7 5 12 9 13 13 10 Storage 7 | . 14 14 14 14 9 7 7 7 7 7 6 3 6 6 4 Processor 7 | . . . . . . 15 15 15 15 15 13 3 6 6 4 Protection 2 | . . . . 3 4 1 . . . 1 . 8 6 6 4 Energy Gun 13 | . 25 27 28 27 15 8 7 10 15 14 12 11 6 5 1 Energy Cannon 3 | . . . . . . 5 7 3 . . . 1 10 12 4 Ballistic Gun 5 | . 2 . . . 8 11 7 7 7 12 8 . . 3 4 Ballistic Cannon 4 | . . . . . 2 2 7 7 7 2 3 10 8 4 8 Peak Build Rating 80 | 7 12 12 13 14 32 55 55 58 53 57 69 77 78 80 73 Average Rating 48 | 5 10 11 12 13 26 46 54 53 53 55 65 60 77 79 56 On Entrance 40 | . 7 12 12 13 14 30 52 55 53 53 56 66 77 78 73 Naked Turns 111 | . . . . . . . . . . . . 53 . . 58 Heaviest Build 82 | 14 32 32 32 38 45 58 56 56 51 59 74 80 82 82 76 Greatest Support 120 | 40 40 40 40 40 60 112 104 104 104 112 112 120 120 120 120 Greatest Overweight (x) 4 | . . . . . 1 1 . . . . . 4 . . 1 Average Overweight (x) . | . . . . . . . . . . . . . . . . Largest Inventory Capacity 15 | 8 15 15 15 15 15 15 15 15 15 15 15 15 15 15 15 Average Capacity 14 | 7 10 15 15 15 15 15 15 15 15 15 15 10 15 15 13 Most Carried 15 | 5 11 14 15 15 15 15 15 15 14 15 15 15 15 15 13 Average Carried 13 | 2 8 13 14 14 14 14 15 14 14 14 14 8 14 14 11 Final Capacity 15 | 8 15 15 15 15 15 15 15 15 15 15 15 15 15 15 5 Final Carried 15 | 5 11 14 15 14 15 15 15 14 14 15 15 14 15 13 5 Class Distribution -------------------- 41% | Skirmisher 21% | Mutant 21% | Tank 6% | Scavenger-Skirmisher 6% | Scavenger-Tank Dominant Class ---------------- Mutant | -10/Materials Mutant | -10/Mines Mutant | -10/Exiles Mutant | -9/Mines Skirmisher | -8/Materials Skirmisher | -7/Factory Skirmisher | -7/Lower Caves Skirmisher | -7/Lower Caves Skirmisher | -7/Data Miner Scavenger-Gunner | -6/Proximity Caves Skirmisher | -6/Factory Scavenger-Tank | -6/Waste Tank | -6/Factory Tank | -6/Lower Caves Tank | -6/Lower Caves Resources | -11 -10 -10 -10 -9 -8 -7 -7 -7 -7 -6 -6 -6 -6 -6 -6 ----------- Run | Yrd Mat Min Exi Min Mat Fac Low Low Dat Pro Fac Was Fac Low Low Matter Collected 4235 | 278 111 10 . 20 326 952 96 288 . 392 627 494 154 303 184 Remotely . | . . . . . . . . . . . . . . . . Salvage Created 5183 | 119 503 162 . 73 678 1442 . 76 . 297 513 174 70 832 244 Parts 269 | 8 28 16 . . 53 81 . 7 . 19 23 . 1 23 10 Haulers Intercepted 1 | . 1 . . . . . . . . . . . . . . Recyclers Shooed 3 | 1 . . . . . 2 . . . . . . . . . Parts Field Recycled . | . . . . . . . . . . . . . . . . Retrieved Matter . | . . . . . . . . . . . . . . . . Parts Self-Destructed 66 | . . . . . . . . 6 . 32 . . . 19 9 Prevented 8 | . . . . . . . 1 . . . . . . 7 . Kills | -11 -10 -10 -10 -9 -8 -7 -7 -7 -7 -6 -6 -6 -6 -6 -6 ------- Run | Yrd Mat Min Exi Min Mat Fac Low Low Dat Pro Fac Was Fac Low Low Combat Hostiles Destroyed 118 | . 12 7 . 4 20 29 . 6 . 14 8 1 1 13 3 Guns 65 | . 10 6 . 4 20 11 . . . 3 8 . . 2 1 Cannons 21 | . . . . . . 9 . 1 . . . 1 . 8 2 AOE 26 | . 2 1 . . . 7 . 5 . 11 . . . . . Classes Destroyed 16 | 2 3 1 . 1 1 5 . . . 1 . 1 . 1 . Worker 1 | . . . . . . 1 . . . . . . . . . Builder 3 | . . . . . . 1 . . . . 2 . . . . Tunneler 3 | 2 . . . . . . . . . . 1 . . . . Hauler 1 | . 1 . . . . . . . . . . . . . . Recycler 6 | 1 . . . . . 4 . . . . 1 . . . . Swarmer 47 | . 3 6 . . 10 7 . 5 . 11 3 . . 1 1 Grunt 37 | . 9 1 . . 4 8 . . . 1 4 . . 9 1 Brawler 2 | . . . . . . . . . . . . . . 1 1 Duelist 4 | . . . . . . . . . . 1 . . . 1 2 Sentry 14 | . . . . . 6 5 . . . 1 . . 1 1 . Hunter 2 | . . . . . . 2 . . . . . . . . . Programmer 7 | . . . . . . 5 . 1 . . 1 . . . . Heavy 2 | . . . . . . 2 . . . . . . . . . Compactor 1 | . . . . . . . . . . . . 1 . . . Zionite 1 | . . 1 . . . . . . . . . . . . . Assembled 4 | . . . . 4 . . . . . . . . . . . Wasp 1 | . . . . . . . . . . . . . . 1 . Best Kill Streak 12 | 3 5 3 . 3 4 12 . 4 . 4 5 1 1 7 2 Combat Bots Only 10 | . 5 3 . 3 4 10 . 4 . 4 4 1 1 7 2 Max Kills in Single Turn 3 | 1 2 2 . 1 2 3 . 2 . 2 1 1 1 2 1 Gunslinging 1 | . . 1 . . . . . . . . . . . . . Exploded 2 | . 2 1 . . . 2 . 2 . 2 . . . . . Melee . | . . . . . . . . . . . . . . . . Uniques/NPCs Destroyed . | . . . . . . . . . . . . . . . . Combat | -11 -10 -10 -10 -9 -8 -7 -7 -7 -7 -6 -6 -6 -6 -6 -6 -------- Run | Yrd Mat Min Exi Min Mat Fac Low Low Dat Pro Fac Was Fac Low Low Hostile Shots Fired 824 | . 57 29 . 16 59 248 . 43 . 46 62 7 56 63 138 Missed 242 | . 9 10 . 5 18 71 . 8 . 18 14 . 27 15 47 Hits 582 | . 48 19 . 11 41 177 . 35 . 28 48 7 29 48 91 Melee 29 | . . . . 3 . . . . . . . 7 . 4 15 Projectile 553 | . 48 19 . 8 41 177 . 35 . 28 48 . 29 44 76 AOE 2 | . . . . . . 2 . . . . . . . . . Critical Strikes 19 | . . 1 . . 2 6 . . . 1 3 1 . 1 4 Part Disruptions 1 | . . . . . . . . 1 . . . . . . . Damage Taken 9285 | . 524 196 . 173 439 2722 . 633 . 543 593 280 254 997 1931 Core 1559 | . 96 40 . 14 59 393 . 35 . 58 71 164 12 60 557 Absorbed by Shields 255 | . . . . . . . . . . . 219 36 . . . Regen/Repaired (Parts) 460 | . 133 . . . 71 12 . . . . . 181 56 . 7 Core Remaining (%) 64 | 100 . . . 40 89 . . . . 30 . . . . . Volleys Fired 246 | 8 26 12 . 12 32 56 1 12 . 16 24 5 7 20 15 Largest 4 | 2 2 2 . 2 3 4 1 4 . 4 4 4 1 4 4 Hottest 321 | 60 90 90 . 90 115 228 65 214 . 210 203 247 113 321 280 Shots Fired 707 | 16 52 22 . 21 96 179 1 22 . 43 93 19 7 77 59 Gun 487 | 16 52 22 . 21 90 115 . 6 . 35 72 6 . 26 26 Cannon 200 | . . . . . 6 59 1 9 . 1 20 13 7 51 33 Launcher 19 | . . . . . . 5 . 6 . 7 1 . . . . Special 1 | . . . . . . . . 1 . . . . . . . Kinetic 288 | 8 16 . . . 38 89 . 7 . 18 46 10 . 22 34 Thermal 180 | . . . . . . 55 1 7 . 14 23 8 7 40 25 Explosive 19 | . . . . . . 5 . 6 . 7 1 . . . . Electromagnetic 219 | 8 36 22 . 21 58 30 . 1 . 4 23 1 . 15 . Robot Hit Streak 19 | 8 8 8 . 7 19 13 . 14 . 8 14 17 4 14 9 Robot Miss Streak 10 | 2 3 4 . 4 10 5 . 2 . 2 10 4 . 4 7 Penetration Max 1 | . . . . . . . . . . . . 1 . 1 . Secondary Targets 11 | . 4 1 . . 3 . . . . 3 . . . . . Max Gunslinging Chain 1 | . 1 1 . . 1 . . . . 1 . . . . . Shots Hit Robots 442 | 10 34 16 . 17 64 118 . 10 . 30 52 13 4 41 33 Core Hits 299 | 5 26 11 . 12 43 86 . 13 . 34 36 4 . 20 9 Critical Kills 6 | . . . . . . 2 . . . . 1 . . 2 1 Critical Parts Destroyed 6 | . . . . . . 1 . . . 1 . . . 3 1 Critical Strikes 16 | . . . . . . 4 . . . 1 1 . . 6 4 Burn 1 | . . . . . . . . . . . . . . . 1 Meltdown 5 | . . . . . . 2 . . . . . . . 2 1 Destroy 8 | . . . . . . 1 . . . 1 1 . . 4 1 Blast 2 | . . . . . . 1 . . . . . . . . 1 Melee Attacks . | . . . . . . . . . . . . . . . . Impact . | . . . . . . . . . . . . . . . . Slashing . | . . . . . . . . . . . . . . . . Piercing . | . . . . . . . . . . . . . . . . Sneak Attacks . | . . . . . . . . . . . . . . . . Combat Hostiles . | . . . . . . . . . . . . . . . . Follow-up Attacks . | . . . . . . . . . . . . . . . . Damage Inflicted 11894 | 145 616 236 . 202 982 3257 . 732 . 1411 1291 500 155 1374 993 Guns 5919 | 145 448 172 . 202 964 1582 . 72 . 516 932 63 . 386 437 Cannons 3552 | . . . . . 18 941 . 98 . . 359 437 155 988 556 Explosions 2423 | . 168 64 . . . 734 . 562 . 895 . . . . . Melee . | . . . . . . . . . . . . . . . . Ramming . | . . . . . . . . . . . . . . . . Kinetic 3563 | 53 88 . . . 351 1083 . 77 . 209 651 287 . 255 509 Thermal 3807 | . 168 64 . . . 1249 . 93 . 274 249 213 155 858 484 Explosive 2067 | . . . . . . 610 . 562 . 895 . . . . . Electromagnetic 2457 | 92 360 172 . 202 631 315 . . . 33 391 . . 261 . Impact . | . . . . . . . . . . . . . . . . Slashing . | . . . . . . . . . . . . . . . . Piercing . | . . . . . . . . . . . . . . . . Highest Corruption 5 | . . . . . . 4 4 5 5 5 2 2 3 3 4 Average Corruption 3 | . . . . . . 3 4 4 5 5 1 2 2 3 3 Corruption Purged . | . . . . . . . . . . . . . . . . Corruption Blocked . | . . . . . . . . . . . . . . . . Effects 186 | . . . . . . 44 10 20 5 28 4 9 24 33 9 Message Errors 43 | . . . . . . 8 1 4 1 10 . 2 3 12 2 Matter Fused 50 | . . . . . . 12 1 4 1 8 2 4 9 5 4 Heat Flow Errors 22 | . . . . . . 8 3 2 . 1 . 1 4 2 1 Energy Discharges 20 | . . . . . . 6 . 5 . 3 . . 2 4 . Parts Rejected 1 | . . . . . . . . . . . 1 . . . . Parts Fused 4 | . . . . . . 1 . . . 1 . . . 2 . Data Loss (minor) 24 | . . . . . . 4 4 1 2 2 . 2 3 5 1 Data Loss (major) 7 | . . . . . . 2 . 1 1 1 1 . 1 . . Misfires 6 | . . . . . . 1 . 2 . 1 . . . 2 . Alerts 5 | . . . . . . . 1 1 . . . . 2 1 . Weapon Failures 4 | . . . . . . 2 . . . 1 . . . . 1 Overload Shots . | . . . . . . . . . . . . . . . . Overflow Damage 154 | . . . . . . 44 . 44 . 17 5 . . . 44 Projectiles 65 | . . . . . . . . 16 . . 5 . . . 44 Explosions 89 | . . . . . . 44 . 28 . 17 . . . . . Melee . | . . . . . . . . . . . . . . . . Knockbacks 21 | . . . . . 1 5 . . . . 12 . . . 3 Impact . | . . . . . . . . . . . . . . . . Kinetic 20 | . . . . . 1 4 . . . . 12 . . . 3 Secondary 1 | . . . . . . 1 . . . . . . . . . Self-Inflicted Damage 260 | . 7 28 . . . 45 . 111 . 63 6 . . . . Shots 11 | . 1 1 . . . 2 . 4 . 2 1 . . . . Rammed . | . . . . . . . . . . . . . . . . Targets Rammed . | . . . . . . . . . . . . . . . . Kicked . | . . . . . . . . . . . . . . . . Crushed . | . . . . . . . . . . . . . . . . Highest Temperature 589 | 40 410 192 . 240 426 561 188 264 . 438 444 486 230 589 331 Average Temperature 147 | 21 131 66 . 103 138 132 63 124 . 145 207 189 75 241 137 Received Heat Transfer 1854 | . 240 36 . . 153 498 . 12 . 27 128 4 69 336 351 Effects 26 | . . . . 3 3 7 . . . . 5 1 . 7 . Shutdowns 7 | . . . . . 1 2 . . . . 2 . . 2 . Energy Bleed 7 | . . . . . 2 2 . . . . 3 . . . . Interference 8 | . . . . 3 . 1 . . . . . 1 . 3 . Matter Decay 2 | . . . . . . 1 . . . . . . . 1 . Short Circuit 1 | . . . . . . . . . . . . . . 1 . Damage (core) 1 | . . . . . . 1 . . . . . . . . . Siege Activations . | . . . . . . . . . . . . . . . . Martial Activations . | . . . . . . . . . . . . . . . . Shielding Activations . | . . . . . . . . . . . . . . . . Robots Disrupted 2 | . . 1 . . . . . . . 1 . . . . . Combat Hostiles 2 | . . 1 . . . . . . . 1 . . . . . Robots Corrupted 1 | . . . . . . . . . . . . . . 1 . Combat Hostiles 1 | . . . . . . . . . . . . . . 1 . Parts Fried 1 | . . . . . . . . . . . 1 . . . . Impact Corruptions . | . . . . . . . . . . . . . . . . Robots Melted 6 | . . . . . . 2 . . . . . . 1 2 1 Combat Hostiles 5 | . . . . . . 2 . . . . . . 1 2 . Parts Melted 17 | . . . . . . 6 . . . 1 1 . 3 6 . Heat Transferred 5394 | . 250 50 . . . 2016 . 111 . 585 481 259 148 962 532 Parts Sabotaged . | . . . . . . . . . . . . . . . . Parts Stolen . | . . . . . . . . . . . . . . . . Parts Stripped . | . . . . . . . . . . . . . . . . Power Chain Reactions 4 | . 2 1 . . . 1 . . . . . . . . . Alert | -11 -10 -10 -10 -9 -8 -7 -7 -7 -7 -6 -6 -6 -6 -6 -6 ------- Run | Yrd Mat Min Exi Min Mat Fac Low Low Dat Pro Fac Was Fac Low Low Maximum Alert Level 2 | . . . . . 1 2 . . . . 1 . 1 . . Low Security (%) 60 | 100 100 100 . 100 72 21 . . . . 60 100 24 . . Level 1 39 | . . . . . 27 77 . . . . 39 . 75 . . Level 2 . | . . . . . . . . . . . . . . . . Level 3 . | . . . . . . . . . . . . . . . . Level 4 . | . . . . . . . . . . . . . . . . Level 5 . | . . . . . . . . . . . . . . . . High Security . | . . . . . . . . . . . . . . . . Max Security . | . . . . . . . . . . . . . . . . Peak Influence 406 | 15 132 82 . . 258 406 . . . . 250 60 396 . . Initial 199 | . 3 . . . . 77 . . . . 199 60 . . . Average 147 | 2 65 20 . . 124 244 . . . . 188 3 244 . . Influence Increases 4871 | 15 399 181 . . 546 1053 . 195 . 633 486 35 868 313 147 Destroy 0b10 Robot/C 2940 | . 240 140 . . 400 580 . 160 . 500 240 . 320 260 100 Destroy 0b10 Robot/NC 95 | 15 5 . . . . 30 . . . . 35 . 10 . . Destroy Leader 618 | . 52 20 . . 90 190 . 30 . 50 64 . 92 20 10 Allied During Kill 490 | . . 15 . . . . . 5 . 83 53 . 324 3 7 Successful Hack 155 | . 40 . . . 10 72 . . . . 5 . 28 . . Disable Machine 135 | . . . . . . 75 . . . . 45 . 15 . . Destroy Structure 213 | . 2 6 . . 1 61 . . . . 29 35 79 . . Partial Spotted 15 | . . . . . . 15 . . . . . . . . . Lose Combat Pursuer 210 | . 60 . . . 45 30 . . . . 15 . . 30 30 Influence Decreases 4851 | 10 404 181 . . 374 819 406 195 . 316 630 208 562 531 215 Entered New Map 610 | . 2 . . . . 95 151 . . . 118 113 . 114 17 Time Decay 3725 | 10 392 181 . . 354 644 255 185 . 286 452 65 402 387 112 Lost Part 286 | . 10 . . . 20 80 . 10 . 30 20 30 . 20 66 Lost Ally 230 | . . . . . . . . . . . 40 . 160 10 20 Squads Dispatched 35 | . 2 . . . 5 17 . . . 1 4 . 5 . 1 Investigation 5 | . 1 . . . 1 1 . . . . 1 . 1 . . Extermination 9 | . . . . . . 5 . . . . 2 . 2 . . Reinforcement 10 | . 1 . . . 1 5 . . . . 1 . 2 . . Assault 2 | . . . . . . . . . . 1 . . . . 1 Garrison 9 | . . . . . 3 6 . . . . . . . . . Intercept . | . . . . . . . . . . . . . . . . Searches Triggered . | . . . . . . . . . . . . . . . . Construction Impeded 1 | . . . . . . . . . . . 1 . . . . Haulers Reinforced 1 | . . . . . . . . . . . . . 1 . . Active Scanning Responses . | . . . . . . . . . . . . . . . . Cargo Convoy Interrupts 1 | . . . . . . 1 . . . . . . . . . Stealth | -11 -10 -10 -10 -9 -8 -7 -7 -7 -7 -6 -6 -6 -6 -6 -6 --------- Run | Yrd Mat Min Exi Min Mat Fac Low Low Dat Pro Fac Was Fac Low Low Distress Signals 9 | . 1 . . . 2 4 . . . . 2 . . . . Communications Jammed . | . . . . . . . . . . . . . . . . Distress Signals . | . . . . . . . . . . . . . . . . Times Spotted 210 | . 22 8 . 8 26 41 . 9 . 25 20 6 11 15 19 Peak Tracking Total 13 | . 4 3 . 3 6 5 . 4 . 6 4 4 3 7 13 Tactical Retreats 15 | . 2 . . 3 3 2 . . . . 1 1 . 2 1 Traps | -11 -10 -10 -10 -9 -8 -7 -7 -7 -7 -6 -6 -6 -6 -6 -6 ------- Run | Yrd Mat Min Exi Min Mat Fac Low Low Dat Pro Fac Was Fac Low Low Traps Triggered 6 | . . . . . . 3 . . . . 2 . 1 . . Indirectly . | . . . . . . . . . . . . . . . . Trap Hack Attempts . | . . . . . . . . . . . . . . . . Triggered . | . . . . . . . . . . . . . . . . Disarmed . | . . . . . . . . . . . . . . . . Reprogrammed . | . . . . . . . . . . . . . . . . Reused . | . . . . . . . . . . . . . . . . Traps Extracted . | . . . . . . . . . . . . . . . . Installed . | . . . . . . . . . . . . . . . . Triggered . | . . . . . . . . . . . . . . . . Machines | -11 -10 -10 -10 -9 -8 -7 -7 -7 -7 -6 -6 -6 -6 -6 -6 ---------- Run | Yrd Mat Min Exi Min Mat Fac Low Low Dat Pro Fac Was Fac Low Low Machines Disabled 9 | . . . . . . 5 . . . . 3 . 1 . . Max in Single Turn 2 | . . . . . . 2 . . . . . . . . . Garrison Access 1 | . . . . . . . . . . . . . 1 . . Machines Repaired . | . . . . . . . . . . . . . . . . Machines Dismantled . | . . . . . . . . . . . . . . . . Machines Sabotaged . | . . . . . . . . . . . . . . . . Overloaded Fab Kills . | . . . . . . . . . . . . . . . . Hacking | -11 -10 -10 -10 -9 -8 -7 -7 -7 -7 -6 -6 -6 -6 -6 -6 --------- Run | Yrd Mat Min Exi Min Mat Fac Low Low Dat Pro Fac Was Fac Low Low Machines Accessed 37 | . 8 . 1 . 5 9 1 . 4 . 1 . 8 . . Terminals 20 | . 7 . . . 3 3 1 . . . 1 . 5 . . Fabricators 2 | . . . . . . 1 . . . . . . 1 . . Repair Stations 5 | . 1 . . . 1 3 . . . . . . . . . Recycling Units 4 | . . . . . 1 2 . . . . . . 1 . . Scanalyzers . | . . . . . . . . . . . . . . . . Garrison Access 1 | . . . . . . . . . . . . . 1 . . Total Hacks 117 | . 28 . 1 . 14 22 1 . 29 . 4 . 18 . . Successful 71 | . 14 . 1 . 8 8 1 . 29 . 2 . 8 . . Failed 46 | . 14 . . . 6 14 . . . . 2 . 10 . . Catastrophic 6 | . 1 . . . . 3 . . . . . . 2 . . Database Lockouts . | . . . . . . . . . . . . . . . . Manual 34 | . 13 . 1 . 6 3 1 . . . 1 . 9 . . Terminals 58 | . 25 . . . 11 6 1 . . . 4 . 11 . . Fabricators 5 | . . . . . . 2 . . . . . . 3 . . Repair Stations 11 | . 3 . . . 2 6 . . . . . . . . . Recycling Units 11 | . . . . . 1 8 . . . . . . 2 . . Scanalyzers . | . . . . . . . . . . . . . . . . Garrison Access 2 | . . . . . . . . . . . . . 2 . . Terminal Hacks 46 | . 8 . 1 . 3 . 1 . 29 . 1 . 3 . . Record 12 | . . . . . . . 1 . 11 . . . . . . Part Schematic 11 | . . . . . . . . . 11 . . . . . . Robot Schematic 4 | . . . . . . . . . 4 . . . . . . Robot Analysis 1 | . . . . . 1 . . . . . . . . . . Prototype ID Bank 8 | . 3 . . . 1 . . . 3 . 1 . . . . Alert Level 2 | . 1 . . . . . . . . . . . 1 . . Locate Traps 6 | . 3 . . . 1 . . . . . . . 2 . . Hauler Manifests 1 | . 1 . . . . . . . . . . . . . . Proto ID Catalog 1 | . . . 1 . . . . . . . . . . . . Fabricator Hacks 2 | . . . . . . . . . . . . . 2 . . Load Schematic 1 | . . . . . . . . . . . . . 1 . . Build 1 | . . . . . . . . . . . . . 1 . . Repair Station Hacks 7 | . 2 . . . 2 3 . . . . . . . . . Scan Component 4 | . 1 . . . 1 2 . . . . . . . . . Repair 3 | . 1 . . . 1 1 . . . . . . . . . Recycling Unit Hacks 7 | . . . . . 1 5 . . . . . . 1 . . Process 1 | . . . . . . 1 . . . . . . . . . Report Inventory 3 | . . . . . 1 1 . . . . . . 1 . . Retrieve Matter 3 | . . . . . . 3 . . . . . . . . . Scanalyzer . | . . . . . . . . . . . . . . . . Garrison Access Hacks 1 | . . . . . . . . . . . . . 1 . . Seal Access 1 | . . . . . . . . . . . . . 1 . . Unauthorized Hacks 8 | . 4 . . . 2 . . . . . 1 . 1 . . Terminals 8 | . 4 . . . 2 . . . . . 1 . 1 . . Botnet 8 | . 4 . . . 2 . . . . . 1 . 1 . . Fabricators . | . . . . . . . . . . . . . . . . Repair Stations . | . . . . . . . . . . . . . . . . Recycling Units . | . . . . . . . . . . . . . . . . Scanalyzers . | . . . . . . . . . . . . . . . . Garrison Access . | . . . . . . . . . . . . . . . . Data Cores Recovered . | . . . . . . . . . . . . . . . . Used . | . . . . . . . . . . . . . . . . Hacking Detections 27 | . 8 . . . 4 8 . . . . 1 . 6 . . Full Trace Events 4 | . 1 . . . 1 1 . . . . . . 1 . . Feedback Events . | . . . . . . . . . . . . . . . . Feedback Blocked . | . . . . . . . . . . . . . . . . Robot Schematics Acquired 4 | . . . . . . . . . 4 . . . . . . Robots Built . | . . . . . . . . . . . . . . . . Authchips . | . . . . . . . . . . . . . . . . Time . | . . . . . . . . . . . . . . . . Total Robot Build Rating . | . . . . . . . . . . . . . . . . Part Schematics Acquired 11 | . . . . . . . . . 11 . . . . . . Parts Built 1 | . . . . . . . . . . . . . 1 . . Authchips . | . . . . . . . . . . . . . . . . Time 76 | . . . . . . . . . . . . . 76 . . Total Part Build Rating 5 | . . . . . . . . . . . . . 5 . . Parts Repaired 3 | . 1 . . . 1 1 . . . . . . . . . Time 63 | . 13 . . . 38 12 . . . . . . . . . Parts Recycled . | . . . . . . . . . . . . . . . . Recycled Matter 135 | . . . . . . 135 . . . . . . . . . Retrieved Matter 97 | . . . . . . 97 . . . . . . . . . Retrieved Components . | . . . . . . . . . . . . . . . . Parts Scanalyzed . | . . . . . . . . . . . . . . . . Part Schematics Acquired . | . . . . . . . . . . . . . . . . Parts Damaged . | . . . . . . . . . . . . . . . . Bothacking | -11 -10 -10 -10 -9 -8 -7 -7 -7 -7 -6 -6 -6 -6 -6 -6 ------------ Run | Yrd Mat Min Exi Min Mat Fac Low Low Dat Pro Fac Was Fac Low Low Used RIF Installer . | . . . . . . . . . . . . . . . . Robots Hacked . | . . . . . . . . . . . . . . . . Non-combat . | . . . . . . . . . . . . . . . . Combat . | . . . . . . . . . . . . . . . . Robot Hacks Applied . | . . . . . . . . . . . . . . . . Relay Couplers Released 3 | . . . . . . . . . . . . . 3 . . Programmers 3 | . . . . . . . . . . . . . 3 . . Fabnet Peak Effective % . | . . . . . . . . . . . . . . . . Robots Rewired 5 | . . 1 . . . . . . . 1 . . . 2 1 Allies Hacked 3 | . . . . . . . . . . . . . 3 . . Hacks Repelled . | . . . . . . . . . . . . . . . . Allies | -11 -10 -10 -10 -9 -8 -7 -7 -7 -7 -6 -6 -6 -6 -6 -6 -------- Run | Yrd Mat Min Exi Min Mat Fac Low Low Dat Pro Fac Was Fac Low Low Total Allies 31 | . . 3 . 3 . . . 1 . 2 . 19 . 2 1 Largest Group 19 | . . 3 2 3 3 . . 1 1 3 3 19 11 2 2 Highest-Rated Group 684 | . . 62 47 40 40 . . 85 85 213 213 684 415 59 59 Highest-Rated Ally 96 | . . 31 31 16 16 . . 85 85 96 96 50 50 30 30 Total Orders . | . . . . . . . . . . . . . . . . Ally Attacks 292 | . . 4 . 7 8 . . 3 . 25 41 76 115 4 9 Total Damage 9840 | . . . . 47 112 . . 103 . 1012 1449 4052 2899 33 133 Kills 65 | . . . . 1 . . . 2 . 11 18 13 18 . 2 Allies Corrupted 3 | . . . . . . . . . . . . . 3 . . Allies Melted 1 | . . . . . . . . . . . . . . . 1 Field Lobotomies 1 | . . . . . . . . 1 . . . . . . . Intel | -11 -10 -10 -10 -9 -8 -7 -7 -7 -7 -6 -6 -6 -6 -6 -6 ------- Run | Yrd Mat Min Exi Min Mat Fac Low Low Dat Pro Fac Was Fac Low Low Active Infowar (turns) 10789 | 17 899 722 576 317 801 1534 639 883 211 576 670 412 1137 1228 167 IFF 1775 | . . . . . . . . . . . 77 342 . 1189 167 Terrain 7000 | . . . . . 798 1534 639 883 211 576 593 70 1137 559 . Seismic 3253 | 17 899 722 576 317 722 . . . . . . . . . . Robot Analysis Total 1 | . . . . . 1 . . . . . . . . . . Derelict Logs Recovered 8 | . . 1 . 1 . . 1 2 . 2 . . . 1 . Drone Launches . | . . . . . . . . . . . . . . . . Drone Recoveries . | . . . . . . . . . . . . . . . . Exploration | -11 -10 -10 -10 -9 -8 -7 -7 -7 -7 -6 -6 -6 -6 -6 -6 ------------- Run | Yrd Mat Min Exi Min Mat Fac Low Low Dat Pro Fac Was Fac Low Low Turns Passed 14080 | 99 1023 722 576 463 1075 2339 639 883 211 902 1124 895 1436 1392 301 Spaces Moved 8068 | 41 557 421 360 266 534 1458 392 504 101 497 605 527 822 782 201 Core 214 | 4 . . . . . . . . . . . 118 . . 92 Treads 6454 | 37 557 421 360 266 192 445 392 504 101 497 605 364 822 782 109 Legs 1355 | . . . . . 342 1013 . . . . . . . . . Wheels . | . . . . . . . . . . . . . . . . Hover 45 | . . . . . . . . . . . . 45 . . . Flight . | . . . . . . . . . . . . . . . . Fastest Speed 50 | 50 160 160 160 160 120 120 162 162 162 160 160 50 160 160 50 Average Speed 153 | 149 160 160 160 160 157 135 162 162 162 160 160 141 160 160 110 Slowest Speed 250 | 160 160 160 160 160 240 240 162 162 162 162 160 250 160 160 240 Overloaded Moves . | . . . . . . . . . . . . . . . . Propulsion Burnouts . | . . . . . . . . . . . . . . . . Robots Hopped . | . . . . . . . . . . . . . . . . Potential Cave-ins . | . . . . . . . . . . . . . . . . Cave-ins Triggered . | . . . . . . . . . . . . . . . . Exploration Rate (%) 55 | 3 89 84 72 50 42 47 50 73 70 67 20 96 18 80 29 Regions Visited 15 Branch Regions 9 Pre-discovered Areas 1 | . . . . . . . . . 1 . . . . . . Known Exits Taken 3 | . . . 1 . 1 . . . . . . . 1 . . Unknown Exits Taken 10 | 1 1 1 . 1 . 1 1 1 1 1 . . . 1 . Scrap Searched 12 | . . 1 . 1 . . 2 3 . 3 . . . 2 . Spaces Dug 26 | . . . . . . 4 . . . 11 8 . 3 . . Terrain Destroyed 290 | . 2 6 . . . 69 . 88 . 88 8 1 3 18 7 Melee . | . . . . . . . . . . . . . . . . Projectile 42 | . . . . . . 10 . 3 . . . 1 3 18 7 AOE 248 | . 2 6 . . . 59 . 85 . 88 8 . . . . Terrain Rammed . | . . . . . . . . . . . . . . . . Walls Destroyed . | . . . . . . . . . . . . . . . . Machines Disabled . | . . . . . . . . . . . . . . . . Actions | -11 -10 -10 -10 -9 -8 -7 -7 -7 -7 -6 -6 -6 -6 -6 -6 --------- Run | Yrd Mat Min Exi Min Mat Fac Low Low Dat Pro Fac Was Fac Low Low Total 9280 | 61 642 448 360 283 705 1707 395 552 149 565 699 658 944 870 242 Wait 482 | 1 36 4 . 2 75 85 . 27 49 6 20 81 88 2 6 Move 8054 | 40 556 420 359 265 533 1457 391 503 100 496 605 526 821 781 201 Hop . | . . . . . . . . . . . . . . . . Pick Up 105 | 5 7 4 1 1 19 23 . 2 . 4 10 14 12 1 2 Fast Attach 47 | 7 2 . . . 3 15 1 . . 1 4 13 1 . . Attach 40 | . 1 1 . 1 6 9 . 2 . 3 5 4 . 2 6 Detach 1 | . . . . . . 1 . . . . . . . . . Swap 108 | . 7 . . 1 17 28 1 5 . 10 21 6 2 9 1 Drop 99 | . 7 . . 1 20 33 1 1 . 2 10 9 13 . 2 Fire 246 | 8 26 12 . 12 32 56 1 12 . 16 24 5 7 20 15 Melee . | . . . . . . . . . . . . . . . . Ram . | . . . . . . . . . . . . . . . . Kick . | . . . . . . . . . . . . . . . . Crush . | . . . . . . . . . . . . . . . . Escape Stasis . | . . . . . . . . . . . . . . . . Rewire 98 | . . 7 . . . . . . . 27 . . . 55 9 Trap . | . . . . . . . . . . . . . . . . Miscellaneous . | . . . . . . . . . . . . . . . . Route ------- -11/Scrapyard -10/Materials (discovered 6 exits: [*Mat x3] / [*Min x2] / [*Sub]) -10/Mines (discovered 3 exits: [*Mat x2] / *Exi) -10/Exiles (discovered 2 exits: *Min x2) -9/Mines -8/Materials (discovered 4 exits: *Fac x2 / [*Sto x2]) -7/Factory (discovered 2 exits: *Fac / *Low) -7/Lower Caves -7/Lower Caves -7/Data Miner -6/Proximity Caves -6/Factory (discovered 2 exits: Fac / Low) -6/Waste -6/Factory (discovered 2 exits: *Fac / *Low) -6/Lower Caves -6/Lower Caves History --------- Turn | Location | Event 31 | -11/Scrapyard | Discovered new exit (range 15) 100 | -11/Scrapyard | Entered Materials 309 | -10/Materials | Discovered new exit (range 16) 314 | -10/Materials | Build established: Mutant 519 | -10/Materials | Discovered new exit (range 7) 640 | -10/Materials | Repaired Lgt. Treads 751 | -10/Materials | Discovered new exit (range 11) 968 | -10/Materials | Discovered new exit (range 10) 976 | -10/Materials | Discovered new exit (range 15) 1078 | -10/Materials | Discovered new exit (range 10) 1123 | -10/Materials | Entered Mines 1368 | -10/Mines | Deemed a non-threat by the Exiles lab entrance 1368 | -10/Mines | Discovered new exit (range 5) 1435 | -10/Mines | Discovered new exit (range 13) 1535 | -10/Mines | Core integrity fell below 50% 1545 | -10/Mines | Discovered new exit (range 11) 1845 | -10/Mines | Entered Exiles 1845 | -10/Exiles | Accompanied by 2 allies 1846 | -10/Exiles | Identified exit to Mines 1875 | -10/Exiles | Led the pair of lost Derelicts to a safe place 1884 | -10/Exiles | Met 8R-AWN 1964 | -10/Exiles | Met EX-HEX 2026 | -10/Exiles | Met EX-DEC 2165 | -10/Exiles | Met EX-BIN 2183 | -10/Exiles | Aligned with FarCom system 2185 | -10/Exiles | Given EX-Vault access code 2221 | -10/Exiles | Opened EX-Vault 2233 | -10/Exiles | Found Field Lobotomy Kit 2262 | -10/Exiles | Warned to stay clear of 0b10 Research branches 2421 | -10/Exiles | Left Exiles lab with Field Lobotomy Kit 2421 | -10/Exiles | Entered Mines 2421 | -9/Mines | Accompanied by 1 ally 2517 | -9/Mines | Assembled infested the area 2522 | -9/Mines | Assisted by a Guerilla fighting off Assembled 2859 | -9/Mines | Discovered new exit (range 13) 2875 | -9/Mines | Assisted by bots powering up and referring to "LRC-V3" 2884 | -9/Mines | Entered Materials 2884 | -8/Materials | Accompanied by 3 allies 2884 | -8/Materials | Evolved 4 slots: Propulsion x2, Utility x1, Weapon x1 2885 | -8/Materials | Identified exit to Factory 2988 | -8/Materials | Lost 3 allies 3173 | -8/Materials | Build established: Skirmisher 3212 | -8/Materials | Discovered new exit (range 15) 3314 | -8/Materials | Discovered new exit (range 12) 3327 | -8/Materials | Garrison activated, responded to threat 3726 | -8/Materials | Repaired Carbon-fiber Leg? 3815 | -8/Materials | Discovered exit to Factory (range 13) 3959 | -8/Materials | Entered Factory 3959 | -7/Factory | Evolved 2 slots: Utility x1, Weapon x1 4036 | -7/Factory | Garrison activated, responded to threat 4075 | -7/Factory | Destroyed 10 combat bots 4470 | -7/Factory | Repaired Imp. Terrain Scanner 4751 | -7/Factory | Discovered new exit (range 13) 5006 | -7/Factory | Cargo convoy interrupted 5333 | -7/Factory | Lost 6 parts (1p3n2w) 5336 | -7/Factory | Core integrity fell below 50% 6261 | -7/Factory | Discovered new exit (range 7) 6298 | -7/Factory | Entered Lower Caves 6571 | -7/Lower Caves | Learned Factory emergency access door positions 6725 | -7/Lower Caves | Encountered a Warlord checkpoint 6822 | -7/Lower Caves | Discovered new exit (range 16) 6937 | -7/Lower Caves | Entered another Lower Caves area 6985 | -7/Lower Caves | Encountered a Warlord checkpoint 7268 | -7/Lower Caves | Learned location of 1 exit from Factory 7306 | -7/Lower Caves | Spotted B-75 Beast 7339 | -7/Lower Caves | Assimilated B-75 Beast with FLK Orb 7423 | -7/Lower Caves | Discovered new exit (range 14) 7820 | -7/Lower Caves | Entered Data Miner 7820 | -7/Data Miner | Accompanied by 1 ally 7820 | -7/Data Miner | Discovered new exit (range 6) 7851 | -7/Data Miner | Met Data Miner 7887 | -7/Data Miner | Learned location of Section 7 (-3) 7887 | -7/Data Miner | Acquired the access code to Warlord's prototype stash 7911 | -7/Data Miner | Received God Mode back door access code from Data Miner 8031 | -7/Data Miner | Entered Proximity Caves 8031 | -6/Proximity Caves | Accompanied by 1 ally 8125 | -6/Proximity Caves | Learned Factory stockpile data 8130 | -6/Proximity Caves | Learned 8 Factory zone layouts 8192 | -6/Proximity Caves | Received a Behemoth hack from an annoying Tinkerer 8671 | -6/Proximity Caves | Spotted B-75 Beast 8731 | -6/Proximity Caves | Attracted the attention of an 0b10 outpost 8735 | -6/Proximity Caves | Escorted by Enhanced Grunt 8864 | -6/Proximity Caves | Discovered new exit (range 8) 8914 | -6/Proximity Caves | Build established: Scavenger-Gunner 8933 | -6/Proximity Caves | Entered Factory 8933 | -6/Factory | Accompanied by 3 allies 8933 | -6/Factory | Evolved 2 slots: Power x1, Utility x1 8934 | -6/Factory | Identified exit to Lower Caves 8935 | -6/Factory | Identified exit to Factory 9338 | -6/Factory | Assembled infested ambush trap array 9684 | -6/Factory | Build established: Skirmisher 10057 | -6/Factory | Sucked down chute 10057 | -6/Factory | Entered Waste 10069 | -6/Waste | Spotted C-40 Crusher 10073 | -6/Waste | Spotted C-40 Crusher 10078 | -6/Waste | Spotted C-40 Crusher 10081 | -6/Waste | Crushed by Compactor (1 part destroyed, 2 dropped) 10118 | -6/Waste | Crushed by Compactor (1 part destroyed, 1 dropped) 10119 | -6/Waste | Crushed by Compactor (1 part destroyed, 2 dropped) 10121 | -6/Waste | Destroyed C-40 Crusher 10121 | -6/Waste | Crushed by Compactor (1 part destroyed, 2 dropped) 10124 | -6/Waste | Crushed by Compactor (1 part destroyed, 2 dropped) 10127 | -6/Waste | Crushed by Compactor (1 part destroyed, 2 dropped) 10130 | -6/Waste | Crushed by Compactor (1 part destroyed) 10132 | -6/Waste | Spotted C-40 Crusher 10147 | -6/Waste | Spotted C-40 Crusher 10161 | -6/Waste | Lost 6 parts (2n2u2w) 10180 | -6/Waste | Warlord forces began an assault 10459 | -6/Waste | Spotted C-40 Crusher 10471 | -6/Waste | Allies destroyed C-40 Crusher 10502 | -6/Waste | Lost 6 allies 10809 | -6/Waste | Build established: Scavenger-Tank 10843 | -6/Waste | Discovered new exit (range 12) 10952 | -6/Waste | Entered Factory 10952 | -6/Factory | Accompanied by 11 allies 11160 | -6/Factory | Discovered exit to Factory (range 10) 11567 | -6/Factory | Build established: Tank 11968 | -6/Factory | Fabricated Lgt. Regenerative Plating? 12077 | -6/Factory | Allied Derelicts emerged from ambush trap array 12205 | -6/Factory | Discovered exit to Lower Caves (range 7) 12388 | -6/Factory | Entered Lower Caves 12388 | -6/Lower Caves | Accompanied by 2 allies 13259 | -6/Lower Caves | Learned Factory garrison access intel 13605 | -6/Lower Caves | Attracted the attention of an 0b10 outpost 13653 | -6/Lower Caves | Destroyed 7 combat bots 13729 | -6/Lower Caves | Discovered new exit (range 11) 13780 | -6/Lower Caves | Entered another Lower Caves area 13780 | -6/Lower Caves | Accompanied by 2 allies 13958 | -6/Lower Caves | Attracted the attention of an 0b10 outpost 14021 | -6/Lower Caves | Core integrity fell below 50% 14023 | -6/Lower Caves | Released all parts (7) 14033 | -6/Lower Caves | Core integrity fell below 20% 14053 | -6/Lower Caves | Lost 11 parts (3p4n2u2w) 14081 | -6/Lower Caves | Destroyed by S-27 Virus with Autogun Last Messages --------------- 14024_ Acquired Lrg. Storage Unit. 14025_ Penetrated by Slug. 14025_ Knocked back. 14027_ Slug penetrates Wall. 14030_ System corrupted: Matter fused (-9). 14030_ Acquired 2 matter. 14030_ Slug penetrates Wall. 14031_ Acquired 76 matter. 14032_ Dropped Matter Compressor. 14032_ Acquired Imp. Deuterium Engine. 14033_ Acquired 100 matter. 14035_ Attempting to rewire G-50 Soldier. 14037_ G-50 Soldier rewired. 14039_ Attempting to rewire G-50 Soldier. 14042_ S-27 Virus destroyed. 14042_ Attempting to rewire G-50 Soldier. 14048_ Autogun fries itself beyond repair. 14049_ System corrupted: Matter fused (-5). 14064_ Acquired 5 matter. 14065_ Acquired 1 matter. Map ----- +----------------------------------------------------+ | ?????????? % ??????????###??# ??????? | | ??????????? % ?????????# ##?# #???????? | | ????????????# % ????????##% ### #??????## | | ?????????????#% ??????### ## ##????## | | ????????????## % ???#### ## ##???# | | ??????????### #### ### #??# #???# # | | ??????????# % % ### #### #???# # | | ???????????# % #???# # | | ?????????????# ##???# # | | ???????????### % #### #### #####?# # | | ???????????# ### #??#####?## ### ### # | | ????????????# ### ##???????# ## # | | ?????????????# ###?????# # | | ?????????????# ##????# | | ????????????# ## #????# | | ????????????## #### #???# ## | | ?????????????####???# ##???## ### #### | | ????????????????????## #?????##??## #??### | | ?????????????????????# ############ ###????## | | ?????????????????????## #???????## | | ??????????????????????## ######### ### #????????? | | ????????????????##?????###???????# ### #????????? | | ??????????? ## ????????????## #????????? | | ?????????? ??????????# #????????? | | ?????????????? ######### #????????? | | ?????????????????????# @ sss #??????? | | ?????????????????????# ##??????? | | ?????????????????????############### ##???????? | | ????????????????????????????????????#####????????? | | ?????????????????????????????????????????????????? | | ?????????????????????????????????????????????????? | | ?????????????????????????????????????????????????? | | ?????????????????????????????????????????????????? | | ?????????????????????????????????????????????????? | | ?????????????????????????????????????????????????? | | ?????????????????????????????????????????????????? | | ?????????????????????????????????????????????????? | | ?????????????????????????????????????????????????? | | ?????????????????????????????????????????????????? | | ?????????????????????????????????????????????????? | | ?????????????????????????????????????????????????? | | ?????????????????????????????????????????????????? | | ?????????????????????????????????????????????????? | | ?????????????????????????????????????????????????? | | ?????????????????????????????????????????????????? | | ?????????????????????????????????????????????????? | | ?????????????????????????????????????????????????? | | ?????????????????????????????????????????????????? | | ?????????????????????????????????????????????????? | | ?????????????????????????????????????????????????? | +----------------------------------------------------+ Best States ------------- Heat Dissipation 75 Energy Generation 32 Energy Capacity 525 Matter Stores 300 Matter Capacity 300 Sight Range 16 Terrain Scan Range 16 Terrain Scan Density 210 Base Temperature (-) 100 Armor Coverage 310 Evasion (%) 55 Targeting Accuracy 8 Armor Integrity Analysis 30 Recoil Reduction 4 Item Schematics ----------------- Combat Drone Bay | -7/Data Miner | Free Lgt. Regenerative Plating | -7/Data Miner | Free Cld. Cesium-ion Thruster | -7/Data Miner | Free Gravity Neutralizer | -7/Data Miner | Free Antimatter Cannon | -7/Data Miner | Free Linear Gravjet | -7/Data Miner | Free Imp. Dynamic Insulation System | -7/Data Miner | Free Enh. Gauss Cannon | -7/Data Miner | Free Enh. Optical Array | -7/Data Miner | Free Adv. Recoil Stabilizer | -7/Data Miner | Free Gyrokinetic Inverter | -7/Data Miner | Free Robot Schematics ------------------ B-48 Gladiator | -7/Data Miner | Free R-10 Processor | -7/Data Miner | Free S-27 Virus | -7/Data Miner | Free O-24 Administrator | -7/Data Miner | Free Fabricated ------------ Lgt. Regenerative Plating | x1 | -6/Factory Repaired ---------- Lgt. Treads | 5% | -10/Materials Carbon-fiber Leg | 35% | -8/Materials Imp. Terrain Scanner | 45% | -7/Factory Alien Tech Used ----------------- None Achievements -------------- None Challenges ------------ None Game ------ Seed GravityPhaseScythe Manual? 0 Play Time 02:46:59 Cumulative 121.3 hours Start 2025.08.28 @ 14:48:18 End 2025.08.30 @ 14:08:05 Sessions 3 Manual Loads 0 Difficulty Rogue Special Mode None Game No. 77 Rogue 77 Adventurer 0 Explorer 0 Win Type - Total 0 Types 0/0/0/0/0/0/0/0/0/0 Lore% 52 Gallery% 44 Achievement% 36 Wizard Run 0 Options --------- Layout 1 ASCII 0 Keyboard 0 Movement Numpad Keybinds 0 Fullscreen 1 Font 32/SmallcapsGlow Map View 50x35 Zoom Use 0% Tactical HUD 1 Map Filters NONE Filters NONE Steam 1 RUN: afe5824e-516d-4a35-8cdf-e4b4f20ef78c